Cogmind - Beta 13 @@@ ROGUE MODE // 2024.04.13 @ 18:27:34 Player: DCS-TF2 Result: Destroyed by Y-45 Defender with Heavy Assault Rifle Performance ------------- Evolutions (1) 500 Regions Visited (3) 600 Robots Destroyed (35) 175 Value Destroyed (611) 611 Prototype IDs (1) 20 Alien Tech Used (0) 0 Bonus (0) 0 TOTAL SCORE: 1906 Bonus ------- None Cogmind --------- Core Integrity 0/400 Matter 300/300 Energy 66/100 System Corruption 0% Temperature Cool (81) Movement Core (50) Location -9/Materials Parts ------- > --- POWER (1) -------- (None) > --- PROPULSION (2) --- (None) > --- UTILITY (3) ------ Visual Processing Unit > --- WEAPON (3) ------- (None) > --- INVENTORY (5) ---- Ion Engine Wheel Peak State ------------ > --- POWER ------------ Light Nuclear Core > --- PROPULSION ------- Wheel Wheel > --- UTILITY ---------- Improved Terrain Scanner Terrain Scan Processor > --- WEAPON ----------- Assault Rifle Grenade Launcher > --- INVENTORY -------- Ion Engine Wheel Wheel Structural Scanner Light Assault Rifle [Rating: 12] Favorites ----------- Power Ion Engine Engine Ion Engine Power Core Light Nuclear Core Propulsion Wheel Wheel Wheel Utility Improved Terrain Scanner Device Improved Terrain Scanner Storage Small Storage Unit Processor Visual Processing Unit Weapon Assault Rifle Energy Gun Small Laser Energy Cannon Light EM Pulse Cannon Ballistic Gun Assault Rifle Ballistic Cannon Improved Light Cannon Launcher Grenade Launcher Slashing Weapon Mining Claw Build | -11 -10 -10 -9 ------- Run | Yrd Mat Min Mat Slots Evolved 2 | . . . 2 Power . | . . . . Propulsion . | . . . . Utility 1 | . . . 1 Weapon 1 | . . . 1 Parts Attached 27 | 8 10 5 4 Power 3 | 1 1 1 . Engine 2 | 1 . 1 . Core 1 | . 1 . . Reactor . | . . . . Propulsion 5 | 2 1 2 . Treads . | . . . . Leg . | . . . . Wheel 5 | 2 1 2 . Hover . | . . . . Flight . | . . . . Utility 7 | 3 4 . . Device 4 | 2 2 . . Storage 1 | 1 . . . Processor 2 | . 2 . . Hackware . | . . . . Protection . | . . . . Artifact . | . . . . Weapon 12 | 2 4 2 4 Energy Gun 1 | . . . 1 Energy Cannon 2 | . . . 2 Ballistic Gun 4 | 2 1 1 . Ballistic Cannon 1 | . . . 1 Launcher 2 | . 2 . . Special Weapon . | . . . . Impact Weapon . | . . . . Slashing Weapon 2 | . 1 1 . Piercing Weapon . | . . . . Special Melee Weapon . | . . . . Unidentified Prototypes 1 | . . . 1 Parts Lost 15 | . . 6 9 Power 2 | . . 1 1 Propulsion 4 | . . 2 2 Utility 1 | . . . 1 Weapon 8 | . . 3 5 Highest Loss Streak 9 | . . 4 9 To Critical Strikes . | . . . . Average Slot Usage (%) 95 | . 100 92 71 Engine 7 | . 6 9 9 Core 5 | . 7 4 . Wheel 26 | . 28 27 19 Device 20 | . 24 14 9 Processor 6 | . 3 14 11 Ballistic Gun 11 | . 14 8 . Launcher 9 | . 11 3 . Slashing Weapon 4 | . 2 8 10 Naked Turns . | . . . . Heaviest Build 16 | 14 12 11 16 Greatest Support 20 | 20 20 20 20 Greatest Overweight (x) 2 | . . . 2 Average Overweight (x) . | . . . . Largest Inventory Capacity 8 | 8 5 5 5 Average Capacity 5 | 6 5 5 5 Most Carried 5 | 5 5 5 4 Average Carried 3 | 3 4 1 1 Final Capacity 5 | 5 5 5 5 Final Carried 5 | 4 5 . 2 Class Distribution -------------------- 65% | Mutant 34% | Scavenger-Mutant Dominant Class ---------------- Mutant | -10/Materials Scavenger-Mutant | -10/Mines Scavenger-Mutant | -9/Materials Resources | -11 -10 -10 -9 ----------- Run | Yrd Mat Min Mat Matter Collected 742 | 306 329 80 27 Remotely . | . . . . Salvage Created 936 | 168 398 111 259 Parts 72 | 13 41 5 13 Haulers Intercepted . | . . . . Recyclers Shooed 1 | . . . 1 Parts Field Recycled . | . . . . Retrieved Matter . | . . . . Parts Self-Destructed . | . . . . Prevented . | . . . . Kills | -11 -10 -10 -9 ------- Run | Yrd Mat Min Mat Combat Hostiles Destroyed 18 | . 9 2 7 Guns 5 | . 4 . 1 Cannons 6 | . . . 6 AOE 6 | . 5 1 . Classes Destroyed 7 | 2 5 . . Worker 3 | . 3 . . Builder 2 | . 2 . . Tunneler 5 | 4 . 1 . Recycler 4 | 1 2 1 . Watcher 3 | . 2 . 1 Swarmer 6 | . 6 . . Grunt 12 | . 3 2 7 Best Kill Streak 7 | 2 5 3 7 Combat Bots Only 7 | . 4 1 7 Max Kills in Single Turn 3 | 1 2 3 1 Gunslinging . | . . . . Exploded 2 | . 2 1 . Melee . | . . . . Uniques/NPCs Destroyed . | . . . . Combat | -11 -10 -10 -9 -------- Run | Yrd Mat Min Mat Hostile Shots Fired 192 | . 38 42 112 Missed 64 | . 17 11 36 Damage Taken 1551 | . 216 417 918 Core 564 | . 24 126 414 Absorbed by Shields . | . . . . Regen/Repaired (Parts) 50 | . 50 . . Core Remaining (%) 70 | 100 . 40 . Volleys Fired 69 | 9 38 10 12 Largest 2 | 2 2 2 2 Hottest 108 | 40 50 50 108 Shots Fired 100 | 18 52 12 18 Gun 71 | 18 38 11 4 Cannon 14 | . . . 14 Launcher 15 | . 14 1 . Special . | . . . . Kinetic 75 | 18 38 11 8 Thermal 7 | . . . 7 Explosive 15 | . 14 1 . Electromagnetic 3 | . . . 3 Robot Hit Streak 7 | 7 4 3 3 Robot Miss Streak 3 | 2 3 3 3 Penetration Max . | . . . . Secondary Targets . | . . . . Shots Hit Robots 47 | 10 21 5 11 Core Hits 47 | 7 25 9 6 Critical Kills . | . . . . Critical Parts Destroyed . | . . . . Critical Strikes 1 | . . . 1 Blast 1 | . . . 1 Melee Attacks 43 | . 1 23 19 Impact . | . . . . Slashing 43 | . 1 23 19 Piercing . | . . . . Sneak Attacks . | . . . . Combat Hostiles . | . . . . Follow-up Attacks . | . . . . Damage Inflicted 1577 | 111 838 270 358 Guns 465 | 111 250 57 47 Cannons 244 | . . . 244 Explosions 801 | . 588 213 . Melee 49 | . . . 49 Ramming 18 | . . . 18 Kinetic 539 | 111 250 57 121 Thermal 108 | . . . 108 Explosive 801 | . 588 213 . Electromagnetic 62 | . . . 62 Impact . | . . . . Slashing 49 | . . . 49 Piercing . | . . . . Highest Corruption . | . . . . Average Corruption . | . . . . Corruption Purged . | . . . . Corruption Blocked . | . . . . Overload Shots . | . . . . Overflow Damage 18 | . 1 . 17 Projectiles 17 | . . . 17 Explosions 1 | . 1 . . Melee . | . . . . Knockbacks 2 | . . . 2 Impact . | . . . . Kinetic 2 | . . . 2 Secondary . | . . . . Self-Inflicted Damage 25 | . 16 . 9 Shots 2 | . 2 . . Rammed 1 | . . . 1 Targets Rammed 1 | . . . 1 Kicked . | . . . . Crushed . | . . . . Highest Temperature 138 | . 7 25 138 Average Temperature 41 | . 3 10 59 Received Heat Transfer 717 | . 39 243 435 Siege Activations . | . . . . Robots Corrupted . | . . . . Combat Hostiles . | . . . . Parts Fried 1 | . . . 1 Impact Corruptions . | . . . . Robots Melted . | . . . . Combat Hostiles . | . . . . Parts Melted 1 | . . . 1 Heat Transferred 211 | . . . 211 Parts Sabotaged . | . . . . Parts Stolen . | . . . . Parts Stripped . | . . . . Power Chain Reactions . | . . . . Alert | -11 -10 -10 -9 ------- Run | Yrd Mat Min Mat Peak Influence 331 | 25 194 131 331 Initial 75 | . . 75 50 Average 55 | 15 44 76 167 Maximum Alert Level 1 | . . . 1 Low Security (%) 95 | 100 100 100 51 Level 1 4 | . . . 48 Level 2 . | . . . . Level 3 . | . . . . Level 4 . | . . . . Level 5 . | . . . . High Security . | . . . . Max Security . | . . . . Squads Dispatched 5 | . 1 1 3 Investigation 3 | . 1 . 2 Extermination . | . . . . Reinforcement 1 | . . . 1 Assault 1 | . . 1 . Garrison . | . . . . Intercept . | . . . . Searches Triggered . | . . . . Construction Impeded . | . . . . Haulers Reinforced . | . . . . Active Scanning Responses . | . . . . Cargo Convoy Interrupts . | . . . . Stealth | -11 -10 -10 -9 --------- Run | Yrd Mat Min Mat Distress Signals 3 | . 1 1 1 Communications Jammed . | . . . . Distress Signals . | . . . . Times Spotted 50 | . 17 12 21 Peak Tracking Total 11 | . 6 8 11 Tactical Retreats 5 | . . 3 2 Traps | -11 -10 -10 -9 ------- Run | Yrd Mat Min Mat Traps Triggered 2 | . 1 . 1 Indirectly . | . . . . Trap Hack Attempts . | . . . . Triggered . | . . . . Disarmed . | . . . . Reprogrammed . | . . . . Reused . | . . . . Traps Extracted . | . . . . Installed . | . . . . Triggered . | . . . . Machines | -11 -10 -10 -9 ---------- Run | Yrd Mat Min Mat Machines Disabled 1 | . 1 . . Max in Single Turn 1 | . 1 . . Machines Repaired . | . . . . Machines Dismantled . | . . . . Machines Sabotaged . | . . . . Overloaded Fab Kills . | . . . . Hacking | -11 -10 -10 -9 --------- Run | Yrd Mat Min Mat Machines Accessed 3 | . 2 . 1 Terminals 2 | . 1 . 1 Fabricators . | . . . . Repair Stations 1 | . 1 . . Recycling Units . | . . . . Scanalyzers . | . . . . Garrison Access . | . . . . Total Hacks 10 | . 7 . 3 Successful 7 | . 5 . 2 Failed 3 | . 2 . 1 Catastrophic . | . . . . Database Lockouts . | . . . . Manual 4 | . 2 . 2 Terminals 5 | . 2 . 3 Fabricators . | . . . . Repair Stations 5 | . 5 . . Recycling Units . | . . . . Scanalyzers . | . . . . Garrison Access . | . . . . Terminal Hacks 1 | . . . 1 Part Schematic 1 | . . . 1 Fabricator Hacks . | . . . . Repair Station Hacks 5 | . 5 . . Scan Component 3 | . 3 . . Repair 2 | . 2 . . Recycling Unit Hacks . | . . . . Scanalyzer . | . . . . Garrison Access Hacks . | . . . . Unauthorized Hacks 1 | . . . 1 Terminals 1 | . . . 1 Botnet 1 | . . . 1 Fabricators . | . . . . Repair Stations . | . . . . Recycling Units . | . . . . Scanalyzers . | . . . . Garrison Access . | . . . . Data Cores Recovered . | . . . . Used . | . . . . Hacking Detections 3 | . 2 . 1 Full Trace Events 2 | . 1 . 1 Feedback Events . | . . . . Feedback Blocked . | . . . . Robot Schematics Acquired . | . . . . Robots Built . | . . . . Authchips . | . . . . Time . | . . . . Total Robot Build Rating . | . . . . Part Schematics Acquired 1 | . . . 1 Parts Built . | . . . . Authchips . | . . . . Time . | . . . . Total Part Build Rating . | . . . . Parts Repaired 2 | . 2 . . Time 64 | . 64 . . Parts Recycled . | . . . . Recycled Matter . | . . . . Retrieved Matter . | . . . . Retrieved Components . | . . . . Parts Scanalyzed . | . . . . Part Schematics Acquired . | . . . . Parts Damaged . | . . . . Bothacking | -11 -10 -10 -9 ------------ Run | Yrd Mat Min Mat Used RIF Installer . | . . . . Robots Hacked . | . . . . Non-combat . | . . . . Combat . | . . . . Robot Hacks Applied . | . . . . Relay Couplers Released . | . . . . Fabnet Peak Effective % . | . . . . Robots Rewired . | . . . . Allies Hacked . | . . . . Hacks Repelled . | . . . . Allies | -11 -10 -10 -9 -------- Run | Yrd Mat Min Mat Total Allies 1 | . . 1 . Largest Group 1 | . . 1 . Highest-Rated Group 31 | . . 31 . Highest-Rated Ally 31 | . . 31 . Total Orders . | . . . . Ally Attacks 2 | . . 2 . Total Damage 22 | . . 22 . Kills . | . . . . Allies Corrupted . | . . . . Allies Melted . | . . . . Intel | -11 -10 -10 -9 ------- Run | Yrd Mat Min Mat Robot Analysis Total . | . . . . Derelict Logs Recovered . | . . . . Drone Launches . | . . . . Drone Recoveries . | . . . . Exploration | -11 -10 -10 -9 ------------- Run | Yrd Mat Min Mat Turns Passed 2811 | 459 1732 360 260 Spaces Moved 1091 | 109 505 274 203 Core 21 | 12 . . 9 Treads . | . . . . Legs . | . . . . Wheels 1070 | 97 505 274 194 Hover . | . . . . Flight . | . . . . Fastest Speed 50 | 50 80 80 50 Average Speed 79 | 76 80 80 79 Slowest Speed 150 | 80 80 80 150 Overloaded Moves . | . . . . Propulsion Burnouts . | . . . . Robots Hopped . | . . . . Cave-ins Triggered . | . . . . Exploration Rate (%) 41 | 9 59 67 30 Regions Visited 3 Branch Regions 1 Pre-discovered Areas . | . . . . Known Exits Taken . | . . . . Unknown Exits Taken 3 | 1 1 1 . Scrap Searched . | . . . . Spaces Dug 36 | . 9 18 9 Terrain Destroyed 125 | . 91 25 9 Melee 28 | . 1 18 9 Projectile . | . . . . AOE 97 | . 90 7 . Terrain Rammed . | . . . . Walls Destroyed . | . . . . Machines Disabled . | . . . . Actions | -11 -10 -10 -9 --------- Run | Yrd Mat Min Mat Total 2849 | 467 1779 358 245 Wait 1588 | 331 1210 47 . Move 1088 | 108 504 273 203 Hop . | . . . . Pick Up 25 | 11 8 . 6 Fast Attach 2 | . 2 . . Attach 17 | 7 1 5 4 Detach . | . . . . Swap 8 | 1 7 . . Drop 8 | . 8 . . Fire 69 | 9 38 10 12 Melee 43 | . 1 23 19 Ram 1 | . . . 1 Kick . | . . . . Crush . | . . . . Escape Stasis . | . . . . Rewire . | . . . . Trap . | . . . . Miscellaneous . | . . . . Route ------- -11/Scrapyard -10/Materials -10/Mines -9/Materials (discovered 1 exit: [*Min]) History --------- Turn | Location | Event 20 | -11/Scrapyard | Discovered new exit (range 15) 460 | -11/Scrapyard | Entered Materials 461 | -10/Materials | Build established: Mutant 1309 | -10/Materials | Repaired Lgt. Nuclear Core 1433 | -10/Materials | Repaired Structural Scanner 2022 | -10/Materials | Build established: Scavenger-Mutant 2177 | -10/Materials | Discovered new exit (range 6) 2192 | -10/Materials | Entered Mines 2193 | -10/Mines | Met a Derelict testing a Signal Generator 2274 | -10/Mines | Assembled infested the area 2279 | -10/Mines | Assisted by a Guerilla fighting off Assembled 2342 | -10/Mines | Lost 4 parts (1p1n2w) 2430 | -10/Mines | Core integrity fell below 50% 2528 | -10/Mines | Discovered new exit (range 16) 2552 | -10/Mines | Entered Materials 2552 | -9/Materials | Evolved 2 slots: Utility x1, Weapon x1 2747 | -9/Materials | Discovered new exit (range 11) 2791 | -9/Materials | Core integrity fell below 50% 2801 | -9/Materials | Core integrity fell below 20% 2812 | -9/Materials | Destroyed by Y-45 Defender with Heavy Assault Rifle Last Messages --------------- R-06 Scavenger collects Aluminum Leg. Acquired Prototype Energy Cannon. Identified Adv. Beam Cannon. Heat Sink melted. G-34 Mercenary destroyed. T-07 Excavator is excavating. Destroyed Ion Engine. G-34 Mercenary destroyed. K-01 Serf collects debris. T-07 Excavator is excavating. G-34 Mercenary destroyed. Adv. Beam Cannon destroyed. K-01 Serf collects debris. R-06 Scavenger collects Ion Engine. K-01 Serf collects debris. Sml. Laser destroyed. U-05 Engineer lays Concrete. Acquired 27 matter. K-01 Serf collects debris. Slammed into R-06 Scavenger. Map ----- +----------------------------------------------------+ | ????? * ?????????# + """ """ #??????????? | | ?????###?????????# """ # """ """ #??????????? | | ?????############# """ # #??????????? | | ?????##! ## """ # #??????????? | | ??????# ] ## """ # #??????????? | | ??????# """ ## #"#########??????????? | | ??????# """ ## ## ##????????????????? | | ??????# """ ## ########## #????????????????? | | ??????# ## ##########"###??????????????? | | ??????# ## ## #??????????????? | | ??????# ## ## """"""" #??????????????? | | ##########+### # ! """"""" #??????????????? | | # """"""" #??????????????? | | T + """"""" #??????????????? | | # """"""" #??????????????? | | ## ########+### # #??????????????? | | ?# ?# """ ## ########### ##??????????????? | | ?# ?# """"" ## #???????????????????????????? | | ?# ?# """"" ## #???????????????????????????? | | ?# ## """"" ## #???????????????????????????? | | ?# ## """ ## #???????????????????????????? | | ?# ## ## #?#####?????????????????????? | | ?# ## ## #?#% ##????????????????????? | | ?# #####+####### #?#*!=##????????????????????? | | ?# #?# #?#%% ##????????????????????? | | ?# #?# #?#g@Y#?????????????????????? | | ?# #?# #?# %%#?????????????????????? | | ?# #?# #?#]r #?????????????????????? | | ?# ### """"" #?# #??????##?????????????? | | ?# """"" ####k## #?????????????? | | ## """"" ???????? | | # < ???????? | | # %k ???????? | | # ##+#########u## ##+##?????????? | | # #########?????????? ? "|"!" #?????????????? | | + #?????????????????? ??"|"!""#?????????????? | | # #?????????????????? uu??#######?????????????? | | ## #?????????????????? tu??????????????????????? | | ?# #?????????????????? uu??????????????????????? | | ?# #??????????????????###??????????????????????? | | ?# #???????????????????????????????????????????? | | ?# #???????????????????????????????????????????? | | ?# #???????????????????????????????????????????? | | ?# #???????????????????????????????????????????? | | ?# #???????????????????????????????????????????? | | ## #???????????????????????????????????????????? | | ## ""??????????????????????????????????????? | | / ""??????????????????????????????????????? | | ## ""??????????????????????????????????????? | | ######???????????????????????????????????????????? | +----------------------------------------------------+ Best States ------------- Heat Dissipation 28 Energy Generation 14 Energy Capacity 250 Matter Stores 300 Matter Capacity 300 Sight Range 18 Robot Scan Range 14 Terrain Scan Range 16 Terrain Scan Density 85 Evasion (%) 50 Item Schematics ----------------- Grenade Launcher | -9/Materials | Hacked Robot Schematics ------------------ None Fabricated ------------ Nothing Alien Tech Used ----------------- None Achievements -------------- None Challenges ------------ None Game ------ Seed CoolingCoolingThermoblaster Manual? 0 Play Time 00:35:20 Cumulative 10.0 hours Start 2024.04.13 @ 17:53:14 End 2024.04.13 @ 18:27:34 Sessions 1 Manual Loads 0 Difficulty Rogue Special Mode None Game No. 11 Rogue 11 Adventurer 0 Explorer 0 Win Type - Total 0 Types 0/0/0/0/0/0/0/0/0 Lore% 11 Gallery% 10 Achievement% 100 Wizard Run 0 Options --------- Layout 1 ASCII 0 Keyboard 0 Movement Mouse Keybinds 0 Fullscreen 1 Font 24/Smallcaps Map View 50x35 Zoom Use 0% Tactical HUD 0 Map Filters NONE Filters NONE Steam 1 RUN: c27d4471-855b-409a-bcce-7cd00f0a021c